Workbook

Sheet ABJouets
B1: A | C1: B | D1: C | E1: D | F1: E | G1: Disponible | H1: Utilisé | I1: Coût unitaire | J1: Coût par produit
A2: Peint rouge | B2: 0 | C2: 1 | D2: 0 | E2: 1 | F2: 1 | G2: 6250 | H2: =B2*B$9+C2*C$9+D2*D$9+E2*E$9+F2*F$9 -> 200 | J2: =MonCoutPeinture(H2) -> 390
A3: Peint bleue | B3: 3 | C3: 1 | D3: 0 | E3: 1 | F3: 0 | G3: 2500 | H3: 0 | J3: =MonCoutPeinture(H3) -> 0
A4: Peint blanche | B4: 2 | C4: 1 | D4: 2 | E4: 0 | F4: 1 | G4: 1100 | H4: 200 | J4: 390
A5: Plastique | B5: 1 | C5: 0 | D5: 2 | E5: 2 | F5: 1 | G5: 875 | H5: 200 | I5: 8 | J5: =I5*H5 -> 1600
A6: Bois | B6: 3 | C6: 2 | D6: 3 | E6: 5 | F6: 4 | G6: 1200 | H6: 800 | I6: 5 | J6: =I6*H6 -> 4000
A7: Colle | B7: 1 | C7: 1 | D7: 3 | E7: 2 | F7: 1 | G7: 1500 | H7: 200 | I7: 9 | J7: =I7*H7 -> 1800
A8: Recette unitaire | B8: 175 | C8: 100 | D8: 100 | E8: 114 | F8: 250 | J8: =SUM(J2:J7) -> 8180 | K8: Coût total
A9: Production | B9: 0 | C9: 0 | D9: 0 | E9: 0 | F9: 200
A10: Recette brute | B10: =B8*B9 -> 0 | C10: =C8*C9 -> 0 | D10: =D8*D9 -> 0 | E10: =E8*E9 -> 0 | F10: =F8*F9 -> 50000
A11: Recette totale | B11: =SUM(B10:F10) -> 50000
G12: Bénéfice | H12: =B11-J8 -> 41820

Sheet Prod. du jouet E exclusivement
B1: A | C1: B | D1: C | E1: D | F1: E | G1: Disponible | H1: Utilisé | I1: Coût unitaire | J1: Coût par produit
A2: Peint rouge | B2: 0 | C2: 1 | D2: 0 | E2: 1 | F2: 1 | G2: 6250 | H2: =B2*B$9+C2*C$9+D2*D$9+E2*E$9+F2*F$9 -> 300 | J2: =MonCoutPeinture(H2) -> 600
A3: Peint bleue | B3: 3 | C3: 1 | D3: 0 | E3: 1 | F3: 0 | G3: 2500 | H3: 0 | J3: =MonCoutPeinture(H3) -> 0
A4: Peint blanche | B4: 2 | C4: 1 | D4: 2 | E4: 0 | F4: 1 | G4: 1100 | H4: 300 | J4: 600
A5: Plastique | B5: 1 | C5: 0 | D5: 2 | E5: 2 | F5: 1 | G5: 875 | H5: 300 | I5: 8 | J5: =I5*H5 -> 2400
A6: Bois | B6: 3 | C6: 2 | D6: 3 | E6: 5 | F6: 4 | G6: 1200 | H6: 1200 | I6: 5 | J6: =I6*H6 -> 6000
A7: Colle | B7: 1 | C7: 1 | D7: 3 | E7: 2 | F7: 1 | G7: 1500 | H7: 300 | I7: 9 | J7: =I7*H7 -> 2700
A8: Recette unitaire | B8: 175 | C8: 100 | D8: 100 | E8: 114 | F8: 250 | J8: =SUM(J2:J7) -> 12300 | K8: Coût total
A9: Production | B9: 0 | C9: 0 | D9: 0 | E9: 0 | F9: 300
A10: Recette brute | B10: =B8*B9 -> 0 | C10: =C8*C9 -> 0 | D10: =D8*D9 -> 0 | E10: =E8*E9 -> 0 | F10: =F8*F9 -> 75000
A11: Recette totale | B11: =SUM(B10:F10) -> 75000
G12: Bénéfice | H12: =B11-J8 -> 62700
B16: Question 4 - Table de simulation à deux entrées
D17: Quantité de E à produire
C18: =H12 -> 62700 | D18: 100 | E18: 150 | F18: 200 | G18: 250 | H18: 300
B19: Coût unitaire du bois | C19: 3 | D19: 21740 | E19: 32580 | F19: 43420 | G19: 54260 | H19: 65100
C20: 4 | D20: 21340 | E20: 31980 | F20: 42620 | G20: 53260 | H20: 63900
C21: 5 | D21: 20940 | E21: 31380 | F21: 41820 | G21: 52260 | H21: 62700
C22: 6 | D22: 20540 | E22: 30780 | F22: 41020 | G22: 51260 | H22: 61500
C23: 7 | D23: 20140 | E23: 30180 | F23: 40220 | G23: 50260 | H23: 60300
C24: 8 | D24: 19740 | E24: 29580 | F24: 39420 | G24: 49260 | H24: 59100
C25: 9 | D25: 19340 | E25: 28980 | F25: 38620 | G25: 48260 | H25: 57900
C26: 10 | D26: 18940 | E26: 28380 | F26: 37820 | G26: 47260 | H26: 56700
